bitfinex/quotes_BTCUSD_20220218
["timestamp","ask_amount","ask_price","bid_price","bid_amount"]
[1645213251993,0.062249,40188.0,40186.0,0.03057892]
[1645213252192,0.062249,40188.0,40186.0,0.03029137]
[1645213252846,0.062249,40188.0,40187.0,0.00349134]
[1645213256402,0.072468,40188.0,40187.0,0.00349134]
[1645213257593,0.07308004,40188.0,40186.0,0.02715364]
[1645213257797,0.07308004,40188.0,40186.0,0.02686609]
[1645213258496,0.00061204,40188.0,40186.0,0.02686609]
[1645213259395,0.06286004,40188.0,40186.0,0.02686609]
[1645213259596,0.010219,40187.0,40186.0,0.02686609]
[1645213260647,0.02327192,40187.0,40186.0,0.02686609]
[1645213261447,0.02327192,40187.0,40186.0,0.01186609]
[1645213263350,0.02407462,40187.0,40186.0,0.01186609]
[1645213265398,0.35220368,40187.0,40186.0,0.01186609]
[1645213265607,0.40190368,40187.0,40186.0,0.01186609]
[1645213265797,0.60190368,40187.0,40186.0,0.01186609]
[1645213265999,0.58885076,40187.0,40186.0,0.01186609]
[1645213266198,0.59500106,40187.0,40186.0,0.01186609]
[1645213266997,0.266872,40187.0,40186.0,0.01186609]
[1645213267199,0.2607217,40187.0,40186.0,0.01186609]
[1645213267401,0.1607217,40187.0,40186.0,0.01186609]
[1645213267846,0.48885076,40187.0,40186.0,0.01186609]
[1645213268251,0.5894931,40187.0,40186.0,0.01186609]
[1645213269449,0.26136404,40187.0,40186.0,0.01186609]
[1645213269750,0.16136404,40187.0,40186.0,0.01186609]
[1645213270353,0.16085104,40187.0,40186.0,0.01186609]
[1645213271901,0.15063204,40187.0,40186.0,0.01186609]
[1645213272102,0.05093204,40187.0,40186.0,0.01186609]
[1645213272300,0.00158437,40187.0,40186.0,0.01186609]
[1645213272700,0.010219,40190.0,40186.0,0.01728751]
[1645213272900,0.010219,40190.0,40186.0,0.01757506]
[1645213273099,0.062249,40189.0,40186.0,0.01757506]
[1645213273700,0.072468,40189.0,40186.0,0.01728751]
[1645213273899,0.010219,40188.0,40186.0,0.01728751]
[1645213274299,0.072473,40188.0,40186.0,0.01728751]
[1645213274500,0.010219,40189.0,40186.0,0.01728751]
[1645213274700,0.08268,40190.0,40186.0,0.01728751]
[1645213274899,0.072461,40190.0,40186.0,0.01728751]
[1645213275750,0.06225401,40188.0,40186.0,0.01728751]
[1645213275952,0.12450301,40188.0,40186.0,0.01728751]
[1645213276350,0.12450301,40188.0,40186.0,0.01735207]
[1645213276551,0.23472201,40188.0,40186.0,0.01735207]
[1645213276752,0.18472201,40188.0,40186.0,0.01735207]
[1645213276952,0.17450301,40188.0,40186.0,0.01735207]
[1645213277354,0.17450301,40188.0,40186.0,0.01728751]
[1645213277555,0.17450301,40188.0,40186.0,0.01554393]
[1645213278054,0.19472201,40188.0,40186.0,0.01554393]
[1645213279297,0.1541508,40188.0,40186.0,0.01554393]
[1645213279497,0.1541508,40188.0,40186.0,0.01477525]
[1645213279699,0.1541508,40188.0,40186.0,0.01396238]
[1645213280000,0.1743698,40188.0,40186.0,0.01396238]
[1645213280298,0.1641508,40188.0,40186.0,0.01396238]
[1645213280499,0.1743698,40188.0,40186.0,0.01396238]
[1645213280699,0.01399779,40187.0,40186.0,0.01396238]
[1645213281902,0.02421679,40187.0,40186.0,0.01396238]
[1645213282746,0.02421679,40187.0,40186.0,0.01541269]
[1645213286051,0.01399779,40187.0,40186.0,0.01541269]
[1645213287096,0.28295762,40191.0,40186.0,0.07035917]
[1645213287294,0.10931817,40193.0,40187.0,0.32812906]
[1645213287295,0.010219,40192.0,40187.0,0.32812906]
[1645213287496,0.11953717,40193.0,40187.0,0.32812906]
[1645213287795,0.04708117,40193.0,40188.0,0.35355766]
[1645213287995,0.04708117,40193.0,40189.0,0.05494648]
[1645213288598,0.03788117,40193.0,40189.0,0.32812906]
[1645213288798,0.01810017,40193.0,40191.0,0.05494648]
[1645213289004,0.07463763,40195.0,40192.0,0.32679176]
[1645213289200,0.16251962,40199.0,40194.0,0.05494648]
[1645213289400,0.433,40201.0,40197.0,0.05494648]
[1645213289600,0.16251962,40204.0,40200.0,0.05494648]
[1645213289800,0.17273862,40208.0,40201.0,0.72430407]
[1645213290000,0.010219,40209.0,40201.0,0.72430407]
[1645213290247,0.27938229,40210.0,40205.0,0.05494648]
[1645213290445,0.010219,40209.0,40205.0,0.05494648]
[1645213290849,0.010219,40209.0,40203.0,0.05494648]
[1645213291048,0.010219,40208.0,40201.0,0.72430407]
[1645213291250,0.010219,40207.0,40201.0,0.77925055]
[1645213291847,0.010219,40207.0,40201.0,0.72430407]
[1645213292449,0.010219,40206.0,40201.0,0.72430407]
[1645213292651,0.25746887,40211.0,40201.0,0.72430407]
[1645213292849,0.010219,40207.0,40201.0,0.72430407]
[1645213293051,0.010219,40207.0,40201.0,0.0497]
[1645213293052,0.010219,40206.0,40201.0,0.0497]
[1645213293251,0.010219,40206.0,40198.0,0.32685819]
[1645213293252,0.010219,40203.0,40198.0,0.32685819]
[1645213293450,0.010219,40201.0,40198.0,6.643e-05]
[1645213294097,0.010219,40201.0,40197.0,0.31553622]
[1645213294300,0.010219,40201.0,40197.0,0.31560265]
[1645213294697,0.0724487,40201.0,40197.0,0.31560265]
[1645213294897,0.010219,40201.0,40197.0,0.31560265]
[1645213295297,0.010219,40201.0,40197.0,0.31553622]
[1645213295497,0.010219,40201.0,40197.0,0.31560265]
[1645213296497,0.07245,40201.0,40197.0,0.31553622]
[1645213296698,0.13468002,40201.0,40197.0,0.31559973]
[1645213297099,0.13468002,40201.0,40197.0,6.351e-05]
[1645213297747,0.13468002,40201.0,40194.0,0.32679176]
[1645213297948,0.01195962,40200.0,40197.0,6.351e-05]
[1645213298848,0.01195962,40200.0,40193.0,0.05494648]
[1645213299048,0.010219,40199.0,40196.0,6.351e-05]
[1645213299851,0.01195962,40200.0,40196.0,6.351e-05]
[1645213300051,0.01195962,40200.0,40194.0,0.32679176]
[1645213300252,0.01195962,40200.0,40195.0,6.351e-05]
[1645213300454,0.01195962,40200.0,40195.0,0.05500999]
[1645213300653,0.01195962,40200.0,40195.0,6.351e-05]
[1645213300853,0.01195962,40200.0,40195.0,0.24899282]
[1645213301253,0.01195962,40200.0,40195.0,0.24892931]
[1645213301502,0.01195962,40200.0,40195.0,0.24899351]
[1645213302301,0.010219,40199.0,40195.0,0.24899351]
[1645213302501,0.010219,40199.0,40195.0,0.24892931]
[1645213302700,0.010219,40199.0,40195.0,0.24899351]
[1645213302902,0.010219,40199.0,40198.0,0.00156555]
[1645213303102,0.010219,40200.0,40198.0,0.00156555]
[1645213304302,0.12446063,40201.0,40198.0,0.00156555]
[1645213304303,0.07245,40201.0,40198.0,0.00156555]
[1645213304504,0.1,40203.0,40200.0,0.05494648]
[1645213304505,0.010219,40203.0,40200.0,0.05494648]
[1645213304811,0.01537482,40208.0,40203.0,0.05494648]
[1645213304812,0.010219,40206.0,40203.0,0.05494648]
[1645213305148,0.010219,40207.0,40203.0,0.05494648]
[1645213305347,0.010219,40207.0,40202.0,0.05494648]
[1645213305549,0.010219,40206.0,40202.0,0.05494648]
[1645213305848,0.010219,40206.0,40201.0,0.25099499]
[1645213306251,0.010219,40206.0,40199.0,0.05494648]
[1645213306449,0.010219,40204.0,40199.0,0.05494648]
[1645213307253,0.010219,40206.0,40203.0,0.05494648]
[1645213307462,0.010219,40206.0,40199.0,0.05460046]
[1645213307463,0.010219,40211.0,40206.0,0.363641]
[1645213307753,0.07460375,40213.0,40211.0,0.05494648]
[1645213307754,0.08482275,40213.0,40211.0,0.05494648]
[1645213307953,0.07460375,40213.0,40211.0,0.05494648]
[1645213308151,0.393819,40215.0,40211.0,0.05494648]
[1645213308753,0.393819,40215.0,40210.0,0.3223596]
[1645213308754,0.393819,40215.0,40212.0,0.05494648]
[1645213309905,0.393819,40215.0,40209.0,0.05494648]
[1645213310109,0.010219,40214.0,40209.0,0.05494648]
[1645213310304,0.010219,40214.0,40210.0,0.31317407]
[1645213311204,0.010219,40214.0,40209.0,0.05494648]
[1645213311405,0.010219,40213.0,40208.0,0.32679176]
[1645213312104,0.010219,40212.0,40208.0,0.32679176]
[1645213312306,0.010219,40212.0,40209.0,0.30153073]
[1645213312952,0.010219,40212.0,40209.0,0.30143847]
[1645213313351,0.010219,40212.0,40211.0,0.05494648]
[1645213313556,0.010219,40213.0,40211.0,0.05494648]
[1645213313752,0.010219,40214.0,40211.0,0.05494648]
[1645213313953,0.010219,40214.0,40212.0,0.05494648]
[1645213314152,0.393819,40215.0,40212.0,0.05494648]
[1645213314553,0.393819,40215.0,40212.0,0.04994648]
[1645213314752,0.3836,40215.0,40212.0,0.04994648]
[1645213315257,0.3836,40215.0,40213.0,0.32679176]
[1645213316499,0.010219,40219.0,40214.0,0.38293048]
[1645213316700,0.010219,40221.0,40214.0,0.04994648]
[1645213316897,0.010219,40221.0,40213.0,0.37649176]
[1645213317097,0.010219,40220.0,40213.0,0.37649176]
[1645213317296,0.11239676,40223.0,40213.0,0.37649176]
[1645213317498,0.010219,40221.0,40219.0,0.3422588]
[1645213317702,0.010219,40222.0,40219.0,0.3422588]
[1645213317902,0.13283476,40223.0,40219.0,0.66905056]
[1645213318098,0.12261576,40223.0,40219.0,0.66905056]
[1645213318298,0.12261576,40223.0,40219.0,0.71875056]
[1645213318500,0.11239676,40223.0,40220.0,0.332984]
[1645213318898,0.010219,40225.0,40220.0,0.332984]
[1645213319099,0.020438,40225.0,40221.0,0.062175]
[1645213319298,0.020438,40225.0,40222.0,0.332984]
[1645213319299,0.010219,40225.0,40222.0,0.332984]
[1645213319499,0.010219,40225.0,40223.0,0.04994648]
[1645213319699,0.010219,40226.0,40224.0,0.332984]
[1645213319901,0.010219,40228.0,40223.0,0.04994648]
[1645213320152,0.404319,40229.0,40222.0,0.32679176]
[1645213320352,0.010219,40229.0,40228.0,0.33551417]
[1645213320566,0.00031811,40236.0,40228.0,0.71200593]
[1645213320860,0.010219,40236.0,40235.0,0.04994648]
[1645213321054,0.010219,40236.0,40234.0,0.0497]
[1645213321055,0.00031811,40236.0,40234.0,0.0497]
[1645213321252,0.010219,40238.0,40234.0,0.0497]
[1645213321253,0.00031811,40237.0,40234.0,0.0497]
[1645213321553,0.01053711,40238.0,40236.0,0.04994648]
[1645213321854,0.01053711,40238.0,40234.0,0.0497]
[1645213321855,0.01031811,40239.0,40234.0,0.0497]
[1645213322055,0.010219,40235.0,40234.0,0.0497]
[1645213322455,0.020438,40235.0,40234.0,0.0497]
[1645213322653,0.010219,40236.0,40234.0,0.0497]
[1645213322851,0.010219,40235.0,40234.0,0.0497]
[1645213323255,0.01031811,40237.0,40234.0,0.0497]
[1645213323452,0.010219,40236.0,40234.0,0.0497]
[1645213323653,0.10440872,40235.0,40234.0,0.0497]
[1645213324400,0.10440872,40235.0,40228.0,0.0497]
[1645213324601,0.010219,40234.0,40228.0,0.0497]
[1645213324800,0.010219,40233.0,40228.0,0.0497]
[1645213325803,0.01,40233.0,40228.0,0.0497]
[1645213326001,0.010219,40232.0,40225.0,0.04994648]
[1645213326201,0.01,40233.0,40225.0,0.04994648]
[1645213326202,0.010219,40230.0,40225.0,0.04994648]
[1645213326805,0.010219,40229.0,40225.0,0.04994648]
[1645213327001,0.010219,40228.0,40225.0,0.04994648]
[1645213327402,0.010219,40228.0,40222.0,0.001421]
[1645213327657,0.63137289,40235.0,40218.0,0.1199]
[1645213327658,0.010219,40225.0,40218.0,0.1199]
[1645213327856,0.010219,40221.0,40214.0,0.04994648]
[1645213328056,0.010219,40220.0,40214.0,0.04994648]
[1645213328257,0.062199,40221.0,40214.0,0.04994648]
[1645213328258,0.010219,40219.0,40214.0,0.04994648]
[1645213328658,0.010219,40218.0,40214.0,0.04994648]
[1645213330159,0.062203,40219.0,40214.0,0.04994648]
[1645213330160,0.010219,40217.0,40214.0,0.04994648]
[1645213330359,0.010219,40215.0,40209.0,0.04994648]
[1645213330561,0.010219,40215.0,40206.0,0.151057]
[1645213330562,0.062216,40213.0,40206.0,0.030657]
[1645213330757,0.010219,40211.0,40206.0,0.030657]
[1645213331408,0.09722643,40209.0,40206.0,0.030657]
[1645213331601,0.010219,40208.0,40206.0,0.030657]
[1645213334004,0.020219,40209.0,40206.0,0.030657]
[1645213334206,0.010219,40211.0,40208.0,0.04994648]
[1645213334404,0.01630227,40212.0,40206.0,0.030657]
[1645213334804,0.01630227,40212.0,40211.0,0.04994648]
[1645213335004,0.01630227,40212.0,40211.0,0.2519781]
[1645213335252,0.01630227,40212.0,40206.0,0.030657]
[1645213335253,0.02652127,40212.0,40206.0,0.030657]
[1645213335454,0.010219,40209.0,40206.0,0.030657]
[1645213335752,0.01630227,40212.0,40206.0,0.030657]
[1645213335753,0.02630227,40212.0,40206.0,0.030657]
[1645213335953,0.010219,40210.0,40206.0,0.030657]
[1645213336161,0.3871,40218.0,40210.0,0.04994648]
[1645213336355,0.3871,40218.0,40211.0,0.332984]
[1645213336854,0.397319,40218.0,40212.0,0.04994648]
[1645213337155,0.12733393,40215.0,40213.0,0.332984]
[1645213337355,0.12733393,40215.0,40212.0,0.04994648]
[1645213337554,8.387e-05,40213.0,40208.0,0.101421]
[1645213337756,8.387e-05,40213.0,40208.0,0.05631966]
[1645213337757,0.01030287,40213.0,40208.0,0.05631966]
[1645213338155,0.01030287,40213.0,40209.0,0.32709016]
[1645213338557,0.01030287,40213.0,40209.0,0.37709016]
[1645213340304,0.01030287,40213.0,40210.0,0.04494648]
[1645213341205,8.387e-05,40213.0,40210.0,0.04494648]
[1645213341511,0.01030287,40213.0,40210.0,0.04494648]
[1645213342106,0.01030287,40213.0,40211.0,0.2843152]
[1645213342507,0.01030287,40213.0,40211.0,0.28589079]
[1645213343250,0.01018835,40213.0,40211.0,0.28589079]
[1645213344055,0.010219,40214.0,40211.0,0.00157559]
[1645213344853,0.12733393,40215.0,40211.0,0.00157559]
[1645213345254,0.01,40216.0,40213.0,0.27224076]
[1645213345454,0.020219,40216.0,40213.0,0.27224076]
[1645213345854,0.010219,40217.0,40211.0,0.00157559]
[1645213346054,0.010219,40216.0,40211.0,0.00157559]
[1645213346254,0.12598896,40215.0,40211.0,0.00157559]
[1645213346505,0.010219,40214.0,40211.0,0.00157559]
[1645213346709,0.010219,40213.0,40211.0,0.00157559]
[1645213347599,0.19231746,40212.0,40211.0,0.00157559]
[1645213348202,0.062219,40212.0,40208.0,0.001421]
[1645213350550,0.010219,40211.0,40208.0,0.001421]
[1645213352250,0.010219,40211.0,40206.0,0.07560348]
[1645213352451,0.010219,40210.0,40206.0,0.07560348]
[1645213353051,0.010219,40210.0,40209.0,0.04494648]
[1645213353253,0.07404654,40211.0,40209.0,0.04494648]
[1645213353454,0.07404654,40211.0,40206.0,0.030657]
[1645213353654,0.010219,40208.0,40206.0,0.030657]
[1645213353908,0.010219,40207.0,40206.0,0.030657]
[1645213354508,0.010219,40208.0,40206.0,0.030657]
[1645213354700,0.062224,40207.0,40206.0,0.030657]
[1645213354901,0.010219,40208.0,40206.0,0.030657]
[1645213357950,0.00322551,40207.0,40206.0,0.030657]
[1645213358151,0.01344451,40207.0,40206.0,0.030657]
[1645213358754,0.00322551,40207.0,40206.0,0.030657]
[1645213359454,0.26751606,40207.0,40206.0,0.030657]
[1645213359658,0.01322551,40207.0,40206.0,0.030657]
[1645213359854,0.00322551,40207.0,40206.0,0.030657]
[1645213360654,0.00288745,40207.0,40206.0,0.030657]
[1645213362599,0.010219,40208.0,40206.0,0.03223888]
[1645213362997,0.010219,40209.0,40206.0,0.03223888]
[1645213363800,0.020219,40208.0,40206.0,0.03223888]
[1645213364001,0.010219,40207.0,40206.0,0.03223888]
[1645213364200,0.02716757,40207.0,40206.0,0.03223888]
[1645213365247,0.10789824,40207.0,40206.0,0.03216898]
[1645213366447,0.43469,40207.0,40206.0,0.03216898]
[1645213366847,0.53469,40207.0,40206.0,0.03216898]
[1645213369801,0.21811724,40207.0,40206.0,0.03216898]
[1645213370003,0.19767924,40207.0,40206.0,0.03216898]
[1645213370299,0.09767924,40207.0,40206.0,0.03216898]
[1645213371101,0.11789824,40207.0,40206.0,0.03216898]
[1645213372655,0.11789824,40207.0,40206.0,0.0337065]
[1645213373052,0.10767924,40207.0,40206.0,0.0337065]
[1645213376805,0.11789824,40207.0,40206.0,0.0337065]
[1645213377808,0.10767924,40207.0,40206.0,0.0337065]
[1645213378005,0.11010305,40207.0,40206.0,0.0305871]
[1645213378806,0.12032205,40207.0,40206.0,0.0305871]
[1645213379307,0.11010305,40207.0,40206.0,0.0305871]
[1645213380154,0.17233405,40207.0,40206.0,0.0305871]
[1645213380360,0.18255305,40207.0,40206.0,0.0305871]
[1645213380956,0.12032205,40207.0,40206.0,0.0305871]
[1645213381254,0.11010305,40207.0,40206.0,0.0305871]
[1645213381855,0.12032205,40207.0,40206.0,0.0305871]
[1645213382860,0.12108101,40207.0,40206.0,0.0305871]
[1645213385503,0.11086201,40207.0,40206.0,0.0305871]
[1645213385704,0.124456,40206.0,40201.0,0.33350978]
[1645213385898,0.010219,40205.0,40201.0,0.33350978]
[1645213386398,0.010219,40205.0,40199.0,0.04636748]
[1645213386598,0.010219,40204.0,40199.0,0.04636748]
[1645213387200,0.082668,40204.0,40199.0,0.001421]
[1645213387400,0.072449,40204.0,40199.0,0.001421]
[1645213387651,0.072449,40204.0,40199.0,0.29461101]
[1645213388656,0.09519691,40202.0,40199.0,0.001421]
[1645213388858,0.09519691,40202.0,40198.0,6.091e-05]
[1645213388859,0.010219,40201.0,40198.0,6.091e-05]
[1645213389057,0.010219,40200.0,40195.0,0.332984]
[1645213389257,0.020219,40200.0,40196.0,0.332984]
[1645213389458,0.01,40200.0,40193.0,0.0021]
[1645213389658,0.009351,40200.0,40194.0,0.332984]
[1645213389859,0.01015193,40201.0,40196.0,0.04494648]
[1645213390060,0.071582,40202.0,40197.0,0.332984]
[1645213390259,0.071582,40202.0,40196.0,0.04494648]
[1645213390461,0.071582,40202.0,40196.0,0.04500735]
[1645213390666,0.14620558,40202.0,40200.0,0.28401946]
[1645213391802,0.14620558,40202.0,40198.0,6.087e-05]
[1645213392002,0.13685458,40202.0,40198.0,6.087e-05]
[1645213392206,0.07462358,40202.0,40200.0,0.04494648]
[1645213392406,0.07462358,40202.0,40201.0,0.332984]
[1645213392604,0.02013134,40207.0,40205.0,0.10000559]
[1645213392805,0.00318277,40207.0,40205.0,0.10000559]
[1645213393004,0.01,40210.0,40205.0,0.38835567]
[1645213393309,0.01,40210.0,40208.0,0.04494648]
[1645213393805,0.01,40210.0,40205.0,0.38835567]
[1645213394003,0.020219,40210.0,40208.0,0.04494648]
[1645213394204,0.020219,40210.0,40205.0,0.38835567]
[1645213394504,0.010219,40211.0,40208.0,0.04494648]
[1645213394704,0.02581556,40213.0,40208.0,0.04494648]
[1645213394904,0.01559656,40213.0,40208.0,0.04494648]
[1645213395154,0.010219,40214.0,40208.0,0.04494648]
[1645213395555,0.010219,40214.0,40213.0,0.2895375]
[1645213395755,0.09417064,40215.0,40208.0,0.04494648]
[1645213395959,0.09417064,40215.0,40205.0,0.16220759]
[1645213396154,0.010219,40214.0,40205.0,0.16220759]
[1645213396355,0.010219,40213.0,40209.0,0.04494648]
[1645213396755,0.010219,40213.0,40209.0,0.30389661]
[1645213397054,0.010219,40213.0,40209.0,0.04494648]
[1645213397255,0.010219,40213.0,40205.0,0.10000559]
[1645213397256,0.010219,40210.0,40205.0,0.10000559]
[1645213397457,0.01957,40212.0,40205.0,0.10000559]
[1645213397458,0.010219,40206.0,40205.0,0.10000559]
[1645213397855,0.010219,40206.0,40205.0,0.09946119]
[1645213398354,0.072443,40207.0,40205.0,0.09946119]
[1645213398755,0.062224,40207.0,40205.0,0.09946119]
[1645213399805,0.19104315,40207.0,40205.0,0.09946119]
[1645213400806,0.20126215,40207.0,40205.0,0.09946119]
[1645213401007,0.072443,40207.0,40205.0,0.09946119]
[1645213401214,0.010219,40208.0,40205.0,0.09946119]
[1645213401420,0.009351,40209.0,40205.0,0.09946119]
[1645213401421,0.01957,40209.0,40205.0,0.09946119]
[1645213401608,0.029789,40209.0,40205.0,0.09946119]
[1645213401808,0.01957,40209.0,40205.0,0.09946119]
[1645213402009,0.11154298,40208.0,40205.0,0.09946119]
[1645213402210,0.062222,40207.0,40205.0,0.09946119]
[1645213402650,0.062222,40207.0,40206.0,0.00726408]
[1645213404154,0.08266,40207.0,40206.0,0.00645731]
[1645213404354,0.072441,40207.0,40206.0,0.00645731]
[1645213404855,0.122441,40207.0,40206.0,0.00645731]
[1645213405454,0.19705593,40207.0,40206.0,0.00645731]
[1645213405855,0.13683693,40207.0,40206.0,0.00645731]
[1645213406917,0.14705593,40207.0,40206.0,0.00645731]
[1645213407114,0.07461493,40207.0,40206.0,0.00645731]
[1645213407313,0.029789,40209.0,40206.0,0.00645731]
[1645213407514,0.01957,40209.0,40206.0,0.00645731]
[1645213407714,0.010219,40208.0,40206.0,0.00645731]
[1645213407914,0.07461439,40207.0,40206.0,0.00645731]
[1645213408115,0.08567521,40207.0,40205.0,0.09946119]
[1645213408316,0.14789921,40207.0,40205.0,0.09946119]
[1645213408714,0.010219,40206.0,40205.0,0.09946119]
[1645213408921,0.01957,40206.0,40205.0,0.09946119]
[1645213409315,0.01957,40206.0,40205.0,0.44427919]
[1645213409617,0.07545621,40207.0,40205.0,0.44427919]
[1645213409918,0.07545621,40207.0,40206.0,0.32814942]
[1645213410155,0.00084182,40207.0,40206.0,0.32814942]
[1645213410555,0.00084182,40207.0,40206.0,0.32750042]
[1645213410956,0.00084182,40207.0,40206.0,0.66048442]
[1645213411354,0.00084182,40207.0,40206.0,0.94410056]
[1645213411557,0.00084182,40207.0,40206.0,0.66048442]
[1645213412455,0.00084182,40207.0,40206.0,0.32750042]
[1645213412857,0.00087754,40207.0,40206.0,0.32750042]
[1645213413055,0.00087754,40207.0,40206.0,0.32814942]
[1645213417113,0.00087754,40207.0,40206.0,0.66113342]
[1645213417515,0.00087754,40207.0,40206.0,0.71083342]
[1645213417954,0.00087754,40207.0,40206.0,0.76083342]
[1645213418357,0.00256764,40207.0,40206.0,0.86083342]
[1645213418759,0.00256764,40207.0,40206.0,0.52784942]
[1645213418957,0.00256764,40207.0,40206.0,0.86083342]
[1645213419756,0.00256764,40207.0,40206.0,0.76083342]
[1645213419957,0.00256764,40207.0,40206.0,0.71083342]
[1645213420158,0.01278664,40207.0,40206.0,0.37784942]
[1645213420357,0.01278664,40207.0,40206.0,0.32814942]
[1645213420758,0.01278664,40207.0,40205.0,0.09946119]
[1645213420958,0.010219,40206.0,40205.0,0.09946119]
[1645213422014,0.01278664,40207.0,40205.0,0.09946119]
[1645213423412,0.010219,40207.0,40206.0,0.00724825]
[1645213423611,0.009351,40209.0,40206.0,0.00724825]
[1645213423814,0.01957,40209.0,40206.0,0.00724825]
[1645213424813,0.010219,40208.0,40206.0,0.00724825]
[1645213425252,0.020438,40207.0,40206.0,0.00724825]
[1645213425452,0.010219,40207.0,40206.0,0.00724825]
[1645213425653,0.010219,40208.0,40206.0,0.00724825]
[1645213426453,0.00959488,40208.0,40206.0,0.00724825]
[1645213426752,0.010219,40208.0,40206.0,0.00724825]
[1645213427157,0.009351,40209.0,40206.0,0.00724825]
[1645213427454,0.010219,40208.0,40206.0,0.00724825]
[1645213428056,0.010219,40208.0,40205.0,0.10194713]
[1645213428354,0.009351,40209.0,40205.0,0.10194713]
[1645213428555,0.009351,40209.0,40207.0,0.3147958]
[1645213428904,0.010219,40208.0,40205.0,0.10194713]
[1645213429104,0.009351,40209.0,40205.0,0.10194713]
[1645213429405,0.010219,40207.0,40205.0,0.10194713]
[1645213430005,0.009351,40209.0,40206.0,0.6190322]
[1645213430205,0.009351,40209.0,40206.0,0.2860482]
[1645213430405,0.01957,40209.0,40206.0,0.2860482]
[1645213431311,0.01376708,40210.0,40207.0,0.66113342]
[1645213431517,0.30569697,40217.0,40207.0,0.66113342]
[1645213431518,0.08439697,40217.0,40207.0,0.32814942]
[1645213431710,0.0098,40217.0,40212.0,0.37793048]
[1645213431909,0.0098,40217.0,40214.0,0.332984]
[1645213432106,0.010219,40220.0,40214.0,0.332984]
[1645213432311,0.10914818,40222.0,40217.0,0.25368167]
[1645213432665,0.07458887,40221.0,40217.0,0.25368167]
[1645213432865,0.010219,40219.0,40217.0,0.25368167]
[1645213433065,0.07458887,40221.0,40217.0,0.25368167]
[1645213433265,0.010219,40219.0,40217.0,0.25368167]
[1645213433466,0.010219,40219.0,40213.0,0.32814942]
[1645213433666,0.010219,40217.0,40212.0,0.04494648]
[1645213434066,0.010219,40217.0,40213.0,0.66113342]
[1645213434264,0.010219,40217.0,40213.0,0.71083342]
[1645213435066,0.010219,40217.0,40215.0,0.332984]
[1645213435265,0.07458887,40221.0,40216.0,0.332984]
[1645213435466,0.07458887,40221.0,40215.0,0.332984]
[1645213435467,0.010219,40219.0,40215.0,0.332984]
[1645213435669,0.010219,40219.0,40214.0,0.28373779]
[1645213435867,0.07458887,40221.0,40214.0,0.28373779]
[1645213435868,0.010219,40218.0,40214.0,0.28373779]
[1645213436069,0.010219,40217.0,40214.0,0.28373779]
[1645213436269,0.010219,40215.0,40213.0,0.0497]
[1645213436920,0.010219,40216.0,40213.0,0.0497]
[1645213437315,0.009351,40217.0,40213.0,0.0497]
[1645213437519,0.010219,40215.0,40213.0,0.0497]
[1645213437715,0.009351,40217.0,40213.0,0.0497]
[1645213437716,0.010219,40214.0,40213.0,0.0497]
[1645213438715,0.010219,40214.0,40208.0,0.1189]
[1645213438916,0.010219,40210.0,40207.0,0.3455]
[1645213439317,0.010219,40211.0,40207.0,0.332984]
[1645213439517,0.010219,40211.0,40206.0,0.25950848]
[1645213440020,0.010219,40211.0,40207.0,0.332984]
[1645213440256,0.009351,40213.0,40207.0,0.332984]
[1645213440257,0.010219,40212.0,40207.0,0.332984]
[1645213440460,0.010219,40211.0,40207.0,0.332984]
[1645213440657,0.010219,40212.0,40209.0,0.332984]
[1645213440858,0.01957,40213.0,40209.0,0.332984]
[1645213441857,0.029789,40213.0,40209.0,0.332984]
[1645213442058,0.009351,40210.0,40206.0,0.25950848]
[1645213442257,0.01957,40210.0,40207.0,0.332984]
[1645213442457,0.010219,40210.0,40207.0,0.332984]
[1645213442662,0.00085588,40209.0,40206.0,0.25950848]
[1645213443059,0.02202605,40210.0,40209.0,0.00171176]
[1645213443060,0.01180705,40210.0,40209.0,0.00171176]
[1645213443259,0.00245605,40210.0,40209.0,0.33469576]
[1645213443461,0.00245605,40210.0,40209.0,0.00171176]
[1645213443462,0.02202605,40210.0,40209.0,0.00171176]
[1645213443660,0.03653447,40210.0,40209.0,0.00171176]
[1645213443928,0.02202605,40210.0,40209.0,0.00171176]
[1645213444320,0.09663551,40210.0,40209.0,0.00171176]
[1645213444720,0.15886328,40210.0,40209.0,0.00171176]
[1645213445122,0.25886328,40210.0,40209.0,0.00171176]
[1645213445324,0.18425382,40210.0,40209.0,0.00171176]
[1645213446724,0.23395382,40210.0,40209.0,0.00171176]
[1645213447962,0.23478181,40210.0,40209.0,0.00171176]
[1645213453211,0.23478181,40210.0,40209.0,0.00661134]
[1645213453212,0.23149777,40210.0,40209.0,0.00661134]
[1645213457966,0.23149777,40210.0,40209.0,0.0090219]
[1645213463861,0.22127877,40210.0,40209.0,0.0090219]
[1645213464261,0.059351,40210.0,40209.0,0.0090219]
[1645213464461,0.009351,40210.0,40209.0,0.0090219]
[1645213465261,0.072437,40211.0,40209.0,0.00892203]
[1645213465462,0.00679412,40210.0,40209.0,0.00892203]
[1645213466913,0.01701312,40210.0,40209.0,0.00892203]
[1645213467912,0.01875303,40210.0,40209.0,0.00171176]
[1645213468611,0.01875303,40210.0,40209.0,0.00121176]
[1645213468812,0.06875303,40210.0,40209.0,0.00121176]
[1645213469409,0.06875303,40210.0,40209.0,0.00071176]
[1645213470457,0.06875303,40210.0,40209.0,0.00021176]
[1645213470757,1.45,40208.0,40198.0,0.00157988]
[1645213470962,1.45,40208.0,40192.0,0.001]
[1645213470963,0.00679412,40199.0,40192.0,0.001]
[1645213471161,0.00679412,40199.0,40186.0,0.001]
[1645213471162,0.00679412,40194.0,40186.0,0.001]
[1645213471463,0.00679412,40193.0,40186.0,0.001]
[1645213471660,0.0497,40192.0,40186.0,0.001]
[1645213471864,0.0497,40191.0,40187.0,0.29969286]
[1645213472262,0.0497,40191.0,40189.0,0.04494648]
[1645213472462,0.0497,40191.0,40190.0,0.332984]
[1645213473159,0.0591,40199.0,40195.0,0.1491]
[1645213474812,0.0591,40199.0,40195.0,0.14916098]
[1645213475212,0.00679412,40197.0,40195.0,0.14916098]
[1645213475614,0.00679412,40197.0,40195.0,0.1491]
[1645213477013,0.02083284,40197.0,40195.0,0.1491]
[1645213478463,0.08307284,40197.0,40195.0,0.1491]
[1645213478662,0.20757088,40197.0,40195.0,0.1491]
[1645213478962,0.062247,40196.0,40195.0,0.1491]
[1645213479167,0.112247,40196.0,40195.0,0.1491]
[1645213480365,0.4397519,40196.0,40195.0,0.1491]
[1645213480563,0.212247,40196.0,40195.0,0.1491]